Cogmind - Beta 17 @@@ ROGUE MODE // 2026.07.01 @ 07:49:02 Player: Scared Dad Result: Self-destructed Performance ------------- Evolutions (3) 1500 Regions Visited (4) 800 Robots Destroyed (50) 250 Value Destroyed (1813) 1813 Prototype IDs (1) 20 Alien Tech Used (0) 0 Bonus (28) 28 TOTAL SCORE: 4411 Bonus ------- High Alert Combat Kills 28 Cogmind --------- Core Integrity 403/700 Matter 89/300 Energy 86/100 System Corruption 5% Temperature Cool (0) Movement Walking (117) Location -7/Factory Parts ------- > --- POWER (1) -------- (None) > --- PROPULSION (3) --- Carbon-fiber Leg Improved Titanium Leg Improved Titanium Leg > --- UTILITY (5) ------ Small Storage Unit Improved Signal Interpreter Propulsion Shielding Hardlight Generator > --- WEAPON (4) ------- Heavy Particle Gun Heavy Particle Gun Missile Launcher > --- INVENTORY (8) ---- Carbon-fiber Leg Carbon-fiber Leg Carbon-fiber Leg Carbon-fiber Leg Improved Signal Interpreter Autogun Peak State ------------ > --- POWER ------------ Deuterium Engine > --- PROPULSION ------- Improved Titanium Leg Improved Titanium Leg Improved Titanium Leg > --- UTILITY ---------- Small Storage Unit Improved Signal Interpreter Light Armor Plating Improved Light Armor Plating Hardlight Generator > --- WEAPON ----------- Heavy Particle Gun Missile Launcher Missile Launcher Missile Launcher > --- INVENTORY -------- Carbon-fiber Leg Carbon-fiber Leg Heavy Particle Gun Autogun [Rating: 40] Favorites ----------- Power Ion Engine Engine Ion Engine Power Core Nuclear Core Propulsion Light Treads Treads Light Treads Leg Improved Titanium Leg Wheel Compact Wheel Utility Small Storage Unit Device Sensor Array Storage Small Storage Unit Processor Improved Signal Interpreter Protection Light Armor Plating Weapon Autogun Energy Gun Heavy Particle Gun Ballistic Gun Autogun Launcher Missile Launcher Special Weapon Mining Laser Build | -11 -10 -10 -8 -7 ------- Run | Yrd Mat Sub Mat Fac Slots Evolved 6 | . . . 4 2 Power . | . . . . . Propulsion 1 | . . . . 1 Utility 3 | . . . 2 1 Weapon 2 | . . . 2 . Parts Attached 51 | 6 5 12 10 18 Power 5 | 1 . 2 . 2 Engine 4 | 1 . 2 . 1 Core 1 | . . . . 1 Reactor . | . . . . . Propulsion 17 | 2 2 6 1 6 Treads 3 | . 2 . . 1 Leg 7 | . . 1 1 5 Wheel 7 | 2 . 5 . . Hover . | . . . . . Flight . | . . . . . Utility 12 | 1 1 2 4 4 Device 3 | . . 2 1 . Storage 2 | 1 . . 1 . Processor 1 | . . . 1 . Hackware . | . . . . . Protection 6 | . 1 . 1 4 Artifact . | . . . . . Weapon 17 | 2 2 2 5 6 Energy Gun 5 | 2 . . 2 1 Energy Cannon . | . . . . . Ballistic Gun 8 | . 2 1 3 2 Ballistic Cannon . | . . . . . Launcher 3 | . . . . 3 Special Weapon 1 | . . 1 . . Impact Weapon . | . . . . . Slashing Weapon . | . . . . . Piercing Weapon . | . . . . . Special Melee Weapon . | . . . . . Unidentified Prototypes 1 | . . . 1 . Parts Lost 19 | . 1 4 2 12 Power 3 | . . 1 . 2 Propulsion 4 | . 1 2 . 1 Utility 5 | . . 1 . 4 Weapon 7 | . . . 2 5 Highest Loss Streak 6 | . 1 3 2 6 To Critical Strikes 1 | . . . 1 . Average Backups 7 | 6 6 7 8 7 Power 1 | . 1 1 1 . Propulsion 1 | 3 2 2 . 1 Utility 1 | . . . 2 2 Weapon 3 | 2 3 3 3 2 Tool/Special . | . . . . . Unused Backups 10 | . 4 1 1 4 Power 1 | . . . 1 . Propulsion 7 | . 3 1 . 3 Utility 1 | . . . . 1 Weapon 1 | . 1 . . . Tool/Special . | . . . . . Average Slot Usage (%) 92 | . 96 93 92 89 Engine 9 | . 14 13 9 3 Treads 8 | . 18 12 . 2 Leg 6 | . . . 3 19 Wheel 8 | . 9 14 14 . Device 4 | . . 2 11 6 Storage 10 | . 14 14 9 7 Processor 3 | . . . 5 7 Protection 9 | . 10 6 7 12 Energy Gun 5 | . 8 . 12 3 Ballistic Gun 20 | . 19 25 19 18 Peak Build Rating 40 | 6 9 15 22 40 Average Rating 16 | 3 8 10 19 29 On Entrance 9 | . 6 9 11 22 Avg Prop Armor Cover (%) 5 | . . 4 4 6 Naked Turns . | . . . . . Heaviest Build 40 | 13 19 19 37 40 Greatest Support 60 | 20 40 40 36 60 Greatest Overweight (x) 2 | . . . 2 2 Average Overweight (x) . | . . . . . Largest Inventory Capacity 10 | 8 8 8 10 10 Average Capacity 8 | 7 8 8 9 8 Most Carried 10 | 8 8 8 10 10 Average Carried 7 | 6 6 7 8 7 Final Capacity 10 | 8 8 8 10 8 Final Carried 10 | 6 7 7 10 6 Class Distribution -------------------- 59% | Mutant 17% | Tank 12% | Scavenger-Tank 10% | Skirmisher Dominant Class ---------------- Mutant | -10/Materials Mutant | -10/Subcaves Skirmisher | -8/Materials Tank | -7/Factory Resources | -11 -10 -10 -8 -7 ----------- Run | Yrd Mat Sub Mat Fac Matter Collected 1545 | 240 153 478 167 507 Remotely . | . . . . . Salvage Created 1571 | . 185 326 230 830 Parts 78 | . 16 14 15 33 Haulers Intercepted . | . . . . . Recyclers Shooed 1 | . . . . 1 Parts Field Recycled . | . . . . . Retrieved Matter . | . . . . . Parts Self-Destructed 2 | . . 2 . . Prevented . | . . . . . Parts Restored . | . . . . . Kills | -11 -10 -10 -8 -7 ------- Run | Yrd Mat Sub Mat Fac Combat Hostiles Destroyed 47 | . 10 8 5 24 Guns 32 | . 10 8 5 9 AOE 15 | . . . . 15 Classes Destroyed 11 | . 2 1 3 5 Worker 1 | . . . . 1 Recycler 1 | . . . 1 . Watcher 1 | . . . . 1 Swarmer 15 | . 9 . 3 3 Grunt 12 | . 1 2 . 9 Duelist 1 | . . . . 1 Sentry 2 | . . . 1 1 Specialist 4 | . . . . 4 Hunter 4 | . . . 1 3 Programmer 3 | . . . . 3 Subdweller 6 | . . 6 . . Best Kill Streak 9 | . 6 2 3 9 Combat Bots Only 9 | . 6 2 3 9 Max Kills in Single Turn 5 | . 2 1 1 5 Gunslinging 1 | . 1 . . . Exploded 5 | . . . . 5 Melee . | . . . . . Uniques/NPCs Destroyed . | . . . . . Combat | -11 -10 -10 -8 -7 -------- Run | Yrd Mat Sub Mat Fac Hostile Shots Fired 391 | . 46 54 27 264 Missed 132 | . 10 18 6 98 Hits 259 | . 36 36 21 166 Projectile 259 | . 36 36 21 166 Critical Strikes 12 | . . 2 4 6 Damage Taken 3594 | . 326 733 246 2289 Core 510 | . 71 108 34 297 Absorbed by Shields 68 | . . . . 68 Redirected to Shielding 73 | . . . . 73 Regen/Repaired (Parts) 30 | . 30 . . . Core Remaining (%) 73 | 100 . 28 93 . Volleys Fired 109 | . 26 42 10 31 Largest 4 | . 2 2 4 4 Hottest 188 | . 90 100 188 182 Shots Fired 272 | . 52 77 31 112 Gun 247 | . 52 70 31 94 Cannon . | . . . . . Launcher 18 | . . . . 18 Special 7 | . . 7 . . Kinetic 195 | . 34 70 14 77 Thermal 59 | . 18 7 17 17 Explosive 18 | . . . . 18 Electromagnetic . | . . . . . Robot Hit Streak 22 | . 7 22 4 6 Robot Miss Streak 5 | . 5 2 4 5 Penetration Max . | . . . . . Secondary Targets 3 | . 2 . . 1 Max Gunslinging Chain 1 | . 1 . . 1 Shots Hit Robots 169 | . 29 59 15 66 Core Hits 110 | . 10 16 12 72 Critical Kills 1 | . . 1 . . Critical Parts Destroyed . | . . . . . Critical Strikes 6 | . 2 3 . 1 Burn 3 | . 2 . . 1 Destroy 3 | . . 3 . . Melee Attacks . | . . . . . Impact . | . . . . . Slashing . | . . . . . Piercing . | . . . . . Sneak Attacks . | . . . . . Combat Hostiles . | . . . . . Follow-up Attacks . | . . . . . Damage Inflicted 4547 | . 404 881 220 3042 Guns 2381 | . 404 881 205 891 Cannons . | . . . . . Explosions 2105 | . . . . 2105 Melee . | . . . . . Ramming 61 | . . . 15 46 Kinetic 2015 | . 322 881 63 749 Thermal 366 | . 82 . 142 142 Explosive 2105 | . . . . 2105 Electromagnetic . | . . . . . Impact . | . . . . . Slashing . | . . . . . Piercing . | . . . . . Highest Corruption 5 | . . . . 5 Average Corruption 3 | . . . . 3 Corruption Purged . | . . . . . Corruption Blocked . | . . . . . Effects 12 | . . . . 12 Message Errors 2 | . . . . 2 Matter Fused 4 | . . . . 4 Heat Flow Errors 1 | . . . . 1 Energy Discharges 1 | . . . . 1 Data Loss (minor) 2 | . . . . 2 Alerts 1 | . . . . 1 Weapon Failures 1 | . . . . 1 Overload Shots . | . . . . . Overflow Damage 30 | . . . . 30 Projectiles . | . . . . . Explosions 30 | . . . . 30 Melee . | . . . . . Knockbacks . | . . . . . Impact . | . . . . . Kinetic . | . . . . . Secondary . | . . . . . Self-Inflicted Damage 132 | . . . 6 126 Shots 3 | . . . . 3 Rammed 5 | . . . 5 . Targets Rammed 10 | . . . 5 5 Kicked 5 | . . . . 5 Crushed . | . . . . . Highest Temperature 450 | . 351 . 450 440 Average Temperature 129 | . 101 . 199 121 Received Heat Transfer 749 | . 36 195 9 509 Effects 7 | . . . 3 4 Interference 5 | . . . 3 2 Short Circuit 1 | . . . . 1 Damage (minor) 1 | . . . . 1 Siege Activations . | . . . . . Martial Activations . | . . . . . Shielding Activations . | . . . . . Robots Disrupted . | . . . . . Combat Hostiles . | . . . . . Robots Corrupted . | . . . . . Combat Hostiles . | . . . . . Parts Fried . | . . . . . Impact Corruptions . | . . . . . Robots Melted . | . . . . . Combat Hostiles . | . . . . . Parts Melted 2 | . 1 . . 1 Heat Transferred 989 | . 359 . 297 333 Parts Sabotaged . | . . . . . Parts Stolen . | . . . . . Parts Stripped . | . . . . . Power Chain Reactions . | . . . . . Alert | -11 -10 -10 -8 -7 ------- Run | Yrd Mat Sub Mat Fac Maximum Alert Level 2 | . 1 . . 2 Low Security (%) 88 | 100 90 . 100 78 Level 1 7 | . 9 . . 9 Level 2 4 | . . . . 11 Level 3 . | . . . . . Level 4 . | . . . . . Level 5 . | . . . . . High Security . | . . . . . Max Security . | . . . . . Peak Influence 438 | . 235 . 60 438 Initial . | . . . . . Average 67 | . 81 . 12 90 Influence Increases 1317 | . 336 50 138 793 Destroy 0b10 Robot/C 820 | . 200 40 100 480 Destroy 0b10 Robot/NC 15 | . . . 5 10 Destroy Leader 182 | . 40 10 30 102 Successful Hack 35 | . 21 . 2 12 Destroy Structure 85 | . . . 1 84 Lose Combat Pursuer 180 | . 75 . . 105 Influence Decreases 917 | . 318 68 138 393 Entered New Map 10 | . . 10 . . Time Decay 775 | . 308 58 118 291 Lost Part 132 | . 10 . 20 102 Squads Dispatched 10 | . 2 . 1 7 Investigation 2 | . 1 . . 1 Extermination 2 | . . . . 2 Reinforcement 6 | . 1 . 1 4 Assault . | . . . . . Garrison . | . . . . . Intercept . | . . . . . Searches Triggered . | . . . . . Construction Impeded 1 | . . . . 1 Haulers Reinforced . | . . . . . Active Scanning Responses . | . . . . . Cargo Convoy Interrupts 1 | . . . . 1 Stealth | -11 -10 -10 -8 -7 --------- Run | Yrd Mat Sub Mat Fac Distress Signals 4 | . 2 . . 2 Communications Jammed . | . . . . . Distress Signals . | . . . . . Times Spotted 85 | . 25 9 6 45 Peak Tracking Total 15 | . 9 3 4 15 Tactical Retreats 4 | . 1 . . 3 Traps | -11 -10 -10 -8 -7 ------- Run | Yrd Mat Sub Mat Fac Traps Triggered 3 | . 2 . . 1 Indirectly . | . . . . . Trap Hack Attempts . | . . . . . Triggered . | . . . . . Disarmed . | . . . . . Reprogrammed . | . . . . . Reused . | . . . . . Traps Extracted . | . . . . . Installed . | . . . . . Triggered . | . . . . . Machines | -11 -10 -10 -8 -7 ---------- Run | Yrd Mat Sub Mat Fac Machines Disabled . | . . . . . Max in Single Turn . | . . . . . Garrison Access 1 | . . . 1 . Machines Repaired . | . . . . . Machines Dismantled . | . . . . . Machines Sabotaged . | . . . . . Overloaded Fab Kills . | . . . . . Hacking | -11 -10 -10 -8 -7 --------- Run | Yrd Mat Sub Mat Fac Machines Accessed 20 | . 10 . 3 7 Terminals 13 | . 7 . 2 4 Fabricators . | . . . . . Repair Stations 1 | . 1 . . . Recycling Units 3 | . 2 . . 1 Scanalyzers 1 | . . . . 1 Garrison Access 2 | . . . 1 1 Total Hacks 45 | . 26 . 6 13 Successful 20 | . 14 . 3 3 Failed 25 | . 12 . 3 10 Catastrophic 7 | . 3 . 1 3 Database Lockouts . | . . . . . Manual . | . . . . . Terminals 30 | . 17 . 5 8 Fabricators . | . . . . . Repair Stations 3 | . 3 . . . Recycling Units 9 | . 6 . . 3 Scanalyzers 1 | . . . . 1 Garrison Access 2 | . . . 1 1 Terminal Hacks 11 | . 9 . 2 . Record 6 | . 4 . 2 . Branch Access Points 1 | . 1 . . . Emergency Access Points 1 | . 1 . . . Locate Traps 1 | . 1 . . . Zone Layout 2 | . 2 . . . Fabricator Hacks . | . . . . . Repair Station Hacks 2 | . 2 . . . Scan Component 1 | . 1 . . . Repair 1 | . 1 . . . Recycling Unit Hacks 5 | . 3 . . 2 Process 1 | . 1 . . . Report Inventory 2 | . 1 . . 1 Retrieve Matter 2 | . 1 . . 1 Scanalyzer 1 | . . . . 1 Retrieve Study 1 | . . . . 1 Garrison Access Hacks 1 | . . . 1 . Seal Access 1 | . . . 1 . Unauthorized Hacks . | . . . . . Terminals . | . . . . . Fabricators . | . . . . . Repair Stations . | . . . . . Recycling Units . | . . . . . Scanalyzers . | . . . . . Garrison Access . | . . . . . Data Cores Recovered . | . . . . . Used . | . . . . . Hacking Detections 13 | . 6 . 1 6 Full Trace Events 1 | . 1 . . . Feedback Events . | . . . . . Feedback Blocked . | . . . . . Robot Schematics Acquired . | . . . . . Robots Built . | . . . . . Authchips . | . . . . . Time . | . . . . . Total Robot Build Rating . | . . . . . Part Schematics Acquired . | . . . . . Parts Built . | . . . . . Authchips . | . . . . . Time . | . . . . . Total Part Build Rating . | . . . . . Part Studies Acquired 1 | . . . . 1 Parts Repaired 1 | . 1 . . . Time 26 | . 26 . . . Parts Recycled . | . . . . . Recycled Matter 83 | . 83 . . . Retrieved Matter 83 | . 83 . . . Retrieved Components . | . . . . . Parts Scanalyzed . | . . . . . Part Schematics Acquired . | . . . . . Parts Damaged . | . . . . . Bothacking | -11 -10 -10 -8 -7 ------------ Run | Yrd Mat Sub Mat Fac Used RIF Installer . | . . . . . Robots Hacked . | . . . . . Non-combat . | . . . . . Combat . | . . . . . Robot Hacks Applied . | . . . . . Relay Couplers Released . | . . . . . Fabnet Peak Effective % . | . . . . . Robots Rewired . | . . . . . Allies Hacked . | . . . . . Hacks Repelled . | . . . . . Allies | -11 -10 -10 -8 -7 -------- Run | Yrd Mat Sub Mat Fac Total Allies . | . . . . . Largest Group . | . . . . . Highest-Rated Group . | . . . . . Highest-Rated Ally . | . . . . . Total Orders . | . . . . . Ally Attacks . | . . . . . Total Damage . | . . . . . Kills . | . . . . . Allies Corrupted . | . . . . . Allies Melted . | . . . . . Intel | -11 -10 -10 -8 -7 ------- Run | Yrd Mat Sub Mat Fac Active Infowar (turns) 1496 | . . 153 624 719 Optics 285 | . . 106 174 5 Sensors 1390 | . . 47 624 719 Robot Analysis Total . | . . . . . Derelict Logs Recovered . | . . . . . Drone Launches . | . . . . . Drone Recoveries . | . . . . . Exploration | -11 -10 -10 -8 -7 ------------- Run | Yrd Mat Sub Mat Fac Turns Passed 3934 | 113 1071 903 624 1223 Spaces Moved 2713 | 85 770 578 450 830 Core 9 | 9 . . . . Treads 604 | . 396 208 . . Legs 819 | . . . . 819 Wheels 1281 | 76 374 370 450 11 Hover . | . . . . . Flight . | . . . . . Fastest Speed 50 | 50 80 100 105 115 Average Speed 118 | 76 121 124 112 119 Slowest Speed 190 | 80 160 160 130 190 Overloaded Moves . | . . . . . Propulsion Burnouts . | . . . . . Robots Hopped . | . . . . . Potential Cave-ins . | . . . . . Cave-ins Triggered . | . . . . . Exploration Rate (%) 37 | 4 96 31 36 18 Regions Visited 4 Branch Regions 1 Pre-discovered Areas . | . . . . . Known Exits Taken 1 | . . . 1 . Unknown Exits Taken 3 | 1 1 1 . . Scrap Searched 3 | . . 3 . . Spaces Dug . | . . . . . Terrain Destroyed 125 | . . . . 125 Melee . | . . . . . Projectile . | . . . . . AOE 125 | . . . . 125 Terrain Rammed . | . . . . . Walls Destroyed . | . . . . . Machines Disabled . | . . . . . Actions | -11 -10 -10 -8 -7 --------- Run | Yrd Mat Sub Mat Fac Total 3211 | 132 865 677 546 991 Wait 217 | 30 46 28 48 65 Move 2709 | 84 769 577 449 830 Hop . | . . . . . Pick Up 63 | 12 11 8 14 18 Fast Attach . | . . . . . Attach 41 | 6 4 4 10 17 Detach 5 | . . . 2 3 Swap 31 | . 3 14 3 11 Drop 26 | . 6 4 5 11 Fire 109 | . 26 42 10 31 Melee . | . . . . . Ram 5 | . . . 5 . Kick 5 | . . . . 5 Crush . | . . . . . Escape Stasis . | . . . . . Rewire . | . . . . . Trap . | . . . . . Miscellaneous . | . . . . . Route ------- -11/Scrapyard -10/Materials (discovered 5 exits: [*Mat x3] / *Min / [*Sub]) -10/Subcaves -8/Materials -7/Factory History --------- Turn | Location | Event 24 | -11/Scrapyard | Discovered new exit (range 16) 114 | -11/Scrapyard | Entered Materials 141 | -10/Materials | Discovered new exit (range 16) 238 | -10/Materials | Discovered new exit (range 16) 313 | -10/Materials | Build established: Mutant 593 | -10/Materials | Discovered new exit (range 3) 696 | -10/Materials | Repaired Lgt. Armor Plating 886 | -10/Materials | Discovered new exit (range 5) 1046 | -10/Materials | Identified exit to Mines 1165 | -10/Materials | Discovered new exit (range 11) 1185 | -10/Materials | Entered Subcaves 1186 | -10/Subcaves | Approached by a straggling Scientist 1201 | -10/Subcaves | A swath of the cavern ceiling suddenly collapsed 1314 | -10/Subcaves | Discovered new exit (range 15) 1625 | -10/Subcaves | Lost 3 parts (2n1u) 1739 | -10/Subcaves | Core integrity fell below 50% 1893 | -10/Subcaves | Disturbed a concealed Subdweller 2088 | -10/Subcaves | Entered Materials 2088 | -8/Materials | Evolved 4 slots: Utility x2, Weapon x2 2562 | -8/Materials | Discovered new exit (range 10) 2599 | -8/Materials | Build established: Skirmisher 2620 | -8/Materials | Identified exit to Factory 2712 | -8/Materials | Entered Factory 2712 | -7/Factory | Evolved 2 slots: Propulsion x1, Utility x1 3158 | -7/Factory | Build established: Scavenger-Tank 3543 | -7/Factory | Cargo convoy interrupted 3663 | -7/Factory | Build established: Tank 3700 | -7/Factory | Destroyed 9 combat bots 3730 | -7/Factory | Lost 6 parts (1p3u2w) 3935 | -7/Factory | Self-destructed Last Messages --------------- 03815_ K-01 Serf collects debris. 03819_ Acquired Carbon-fiber Leg. 03821_ The unstable cave ceiling collapses. 03824_ Acquired Carbon-fiber Leg. 03832_ The unstable cave ceiling collapses. 03833_ R-06 Scavenger crushed by falling debris. 03833_ R-06 Scavenger destroyed. 03833_ 25 Matter crushed. 03840_ K-01 Serf collects debris. 03845_ U-05 Engineer lays Concrete. 03847_ R-06 Scavenger collects Lgt. Assault Rifle. 03847_ U-05 Engineer builds a Wall. 03847_ K-01 Serf collects debris. 03850_ Kicked T-07 Excavator out of the way. 03858_ L&TFQRTRRPGAD6JLSCBIAO3IJUF1HWDNT NVGFMT 03869_ Acquired 21 matter. 03928_ System corrupted: Matter fused (-10). 03931_ ALERT: Suspicious intruders detected, dispatching Specialist reinforcements to area. Map ----- +----------------------------------------------------+ | ????????????????????????????????????????????? | | ????????????????????????????????????????????? | | ????????????????????????????????????????????? | | ????????????????????????????????????????????? | | ????????????????????????????????????????????? | | ????????????????????????????????????????????? | | ????????????????????????????????????????????? | | ????????????????????????????????????????????? | | ????????????????????????????????????????????? | | ????????????????????????????????????????????? | | ????????????????????????????????????????????? | | ????????????????????????????????????????????? | | ????????????????????????????????????????????? | | ????????????????????????????????????????????? | | ????????????????????????????????????????????? | | ????????????????????????????????????????????? | | ????????????????????????????????????????????? | | ????????????????????????????????????????????? | | ????????????????????????????????????????????? | | ????????????????????????????????????????????? | | ????????????????????????????????????????????? | | ? "?????????????????????????????????????????? | | ? ?????????????????????????????????????????? | | ? ?????????????????????????????????????????? | | ?# ??????????????###########????????????????? | | ?# ????????####### !! =@*#????????????????? | | ?# ????????# # ! #????????????????? | | ?# ######### # =x""" #????????????????? | | ?# # ! x""" #????????????????? | | ?# + """ #????????????????? | | ?# # #????????????????? | | ?# # "" "" #????????????????? | | ?# # ""G"" #????????????????? | | ?# ###########????????????????? | | ?# ##?????????????????????????? | | ## #??????????????????? | | ##############????????????????????? | | #?????????????????????????????????? | | #?????????????????????????????????? | | #?????????????????????????????????? | | #######+###?????????????????????????????????? | | ????? ??????????????H???????????????????? | | ??? ????????????????????????????????? | | ? ??????????????????????????????? | | # #?????????????????????????????? | | # #?????????????????????????????? | | # #?????????????????????????????? | | # #?????????????????????????????? | | # #?????????????????????????????? | | # #?????????????????????????????? | +----------------------------------------------------+ Best States ------------- Heat Dissipation 34 Energy Generation 15 Energy Capacity 275 Matter Stores 300 Matter Capacity 300 Sight Range 21 Robot Scan Range 14 Terrain Scan Density 10 Armor Coverage 375 Propulsion Shielding 33 Weapon Shielding 33 Evasion (%) 55 Recoil Reduction 2 Item Schematics ----------------- None Robot Schematics ------------------ None Fabricated ------------ Nothing Repaired ---------- Lgt. Armor Plating | 66% | -10/Materials Studied --------- Imp. Titanium Leg | -7/Factory | Hacked Alien Tech Used ----------------- None Achievements -------------- None Challenges ------------ None Game ------ Seed DrainedShockboltTearclaws Manual? 0 Play Time 00:41:14 Cumulative 116.0 hours Start 2026.07.01 @ 07:10:03 End 2026.07.01 @ 07:49:02 Sessions 1 Manual Loads 0 Difficulty Rogue Special Mode None Game No. 141 Rogue 141 Adventurer 0 Explorer 0 Win Type - Total 0 Types 0/0/0/0/0/0/0/0/0/0 Lore% 49 Gallery% 46 Achievement% 32 Wizard Run 0 Options --------- Layout 2 ASCII 0 Keyboard 0 Movement Mouse Keybinds 0 Fullscreen 1 Font 24/Smallcaps Map View 50x44 Zoom Use 0% Tactical HUD 1 Map Filters NONE Filters NONE Steam 1 RUN: 4c96b0b3-5754-41b8-b2b7-f8d7b161c510